[Event "3rd BSSZ-Aranytiz GM 2019"]
[Site "Budapest"]
[Date "2019.08.18"]
[Round "3.3"]
[White "Horvath, Dominik"]
[Black "Farago, Ivan"]
[Result "1-0"]
[ECO "E06"]
[WhiteElo "2425"]
[BlackElo "2350"]
[Annotator "NA"]
[PlyCount "81"]
[EventDate "2019.08.16"]
[EventType "tourn"]
[EventCountry "HUN"]
[SourceTitle "playchess.com"]
[Source "ChessBase"]
[SourceQuality "1"]
[TimeControl "40/5400+30:1800+30"]

1. d4 {[%emt 0:00:12]} Nf6 {[%emt 0:00:53]} 2. c4 {[%emt 0:00:10]} e6 {[%emt 0:00:07]} 3. g3 {[%emt 0:00:13]} d5 {[%emt 0:00:38]} 4. Bg2 {[%emt 0:00:05]} Be7 {[%emt 0:00:32]} 5. Nf3 {[%emt 0:00:44]} O-O {[%emt 0:00:14]} 6. O-O {[%emt 0:00:06]} dxc4 {[%emt 0:00:14]} 7. Qc2 {[%emt 0:00:06]} b6 {[%emt 0:00:48] E05: Open Catalan: 5 Nf3 Be7} 8. Bg5 {[%emt 0:00:46]} Nd5 {[%emt 0:01:48]} 9. Bxe7 {[%emt 0:00:42]} Qxe7 {[%emt 0:00:12]} 10. Nbd2 {[%emt 0:01:50]} Ba6 {[%emt 0:03:29]} 11. Nxc4 {[%emt 0:04:27]} Nd7 {[%emt 0:03:39]} 12. Nfe5 $146 {[%emt 0:05:57]} ({Predecessor:} 12. Rac1 c5 13. Qa4 Bb7 14. Qa3 N5f6 15. Rfd1 {½-½ (72) Aronian,L (2792)-Fressinet,L (2687) Paris 2016}) 12... Nxe5 {[%emt 0:13:32]} 13. Nxe5 {[%emt 0:00:10]} c5 {[%emt 0:01:45]} 14. dxc5 {[%emt 0:02:28]} Qxc5 {[%emt 0:02:43]} 15. Qxc5 {[%emt 0:00:34]} bxc5 {[%emt 0:00:07]} 16. Rfc1 {[%emt 0:05:06]} Rac8 {[%emt 0:02:08]} 17. e4 {[%emt 0:07:48]} Nb6 {[%emt 0:01:35]} 18. Rc3 {[%emt 0:00:55]} f6 {[%emt 0:06:53]} 19. Nf3 {[%emt 0:13:41]} Bb5 {[%emt 0:10:05]} 20. Bh3 {[%emt 0:01:20]} Kf7 {[%emt 0:02:06]} 21. Bf1 {[%emt 0:12:18]} Bxf1 {[%emt 0:05:31]} 22. Kxf1 {[%emt 0:00:05]} Rfd8 {[%emt 0:00:42]} 23. Ke2 {[%emt 0:01:25]} c4 {[%emt 0:00:56]} 24. Rac1 {[%emt 0:00:56]} Ke7 $14 {[%emt 0:05:52]} 25. Nd2 {[%emt 0:05:59]} Rd4 {[%emt 0:12:48]} 26. f3 {[%emt 0:03:53]} e5 {[%emt 0:04:38]} 27. R1c2 {[%emt 0:00:36]} Rb8 {[%emt 0:01:24]} 28. Ke3 {[%emt 0:01:19]} Na4 {[%emt 0:07:02]} 29. Rxc4 {[%emt 0:00:25]} Rxb2 {[%emt 0:03:18]} 30. Rxb2 {[%emt 0:02:25]} Nxb2 {[%emt 0:00:07]} 31. Rxd4 {[%emt 0:00:05]} Nd1+ {[%emt 0:01:07]} 32. Kd3 {[%emt 0:00:27]} exd4 {[%emt 0:00:24]} 33. Kxd4 {[%emt 0:01:06]} Nb2 {[%emt 0:00:10]} 34. Kc5 {[%emt 0:05:23]} Kd7 {[%emt 0:00:19]} 35. Kb5 {[%emt 0:00:21]} Kc7 {[%emt 0:00:07]} 36. Nb3 {[%emt 0:01:43]} Nd3 {[%emt 0:00:27]} 37. Nd4 {[%emt 0:02:01]} g6 {[%emt 0:01:55]} 38. a4 {[%emt 0:01:43]} Kb7 {[%emt 0:00:36]} 39. a5 {[%emt 0:00:49]} a6+ {[%emt 0:02:12]} 40. Kc4 {[%emt 0:00:00]} Ne5+ {[%emt 0:00:00]} 41. Kd5 {[%emt 0:00:27]} 1-0

[Event "3rd BSSZ-Aranytiz GM 2019"]
[Site "Budapest"]
[Date "2019.08.18"]
[Round "3.4"]
[White "Aczel, Gergely"]
[Black "Polyik, Peter"]
[Result "1-0"]
[ECO "A06"]
[WhiteElo "2538"]
[BlackElo "2328"]
[Annotator "ChessBase"]
[PlyCount "41"]
[EventDate "2019.08.16"]
[EventType "tourn"]
[EventCountry "HUN"]
[SourceTitle "playchess.com"]
[Source "ChessBase"]
[SourceQuality "1"]
[TimeControl "40/5400+30:1800+30"]

1. Nf3 {[%emt 0:00:04]} d5 {[%emt 0:00:07]} 2. g3 {[%emt 0:00:04]} Nf6 {[%emt 0:00:08]} 3. Bg2 {[%emt 0:00:05]} e6 {[%emt 0:00:05]} 4. O-O {[%emt 0:00:10]} c5 {[%emt 0:01:02]} 5. d4 {[%emt 0:02:48]} cxd4 {[%emt 0:01:54]} 6. Nxd4 {[%emt 0:00:04]} e5 {[%emt 0:00:05]} 7. Nb3 {[%emt 0:00:04]} Be6 {[%emt 0:00:21]} 8. Nc3 {[%emt 0:03:42]} Be7 {[%emt 0:10:26]} 9. Bg5 {[%emt 0:04:31]} Nbd7 {[%emt 0:01:06]} 10. f4 {[%emt 0:00:20]} exf4 {[%emt 0:06:37]} 11. gxf4 {[%emt 0:00:03]} Ng4 {[%emt 0:11:36]} 12. Bxe7 {[%emt 0:00:36]} Qxe7 {[%emt 0:04:25]} 13. Qd4 {[%emt 0:43:56]} Ndf6 {[%emt 0:11:12]} 14. f5 {[%emt 0:03:05]} Bd7 {[%emt 0:01:15]} 15. Nxd5 {[%emt 0:03:39]} Nxd5 {[%emt 0:00:20]} 16. Bxd5 {[%emt 0:00:40]} Ne3 {[%emt 0:02:18]} 17. Bxb7 {[%emt 0:07:02]} Rb8 {[%emt 0:01:10]} 18. Rf3 {[%emt 0:04:59]} Nxc2 {[%emt 0:08:24]} 19. Qxg7 {[%emt 0:00:38]} Rf8 {[%emt 0:00:34]} 20. Rc1 {[%emt 0:00:49]} Ne3 {[%emt 0:22:09]} 21. Qg3 {[%emt 0:01:51]} 1-0

[Event "3rd BSSZ-Aranytiz GM 2019"]
[Site "Budapest"]
[Date "2019.08.18"]
[Round "3.5"]
[White "Kozak, Adam"]
[Black "Secheres, Adrian-Simion"]
[Result "1/2-1/2"]
[ECO "A04"]
[WhiteElo "2495"]
[BlackElo "2394"]
[Annotator "ChessBase"]
[PlyCount "93"]
[EventDate "2019.08.16"]
[EventType "tourn"]
[EventCountry "HUN"]
[SourceTitle "playchess.com"]
[Source "ChessBase"]
[SourceQuality "1"]
[TimeControl "40/5400+30:1800+30"]

1. Nf3 c5 2. c4 Nc6 3. g3 e5 4. Nc3 g6 5. Bg2 Bg7 6. O-O Nge7 7. a3 O-O 8. d3 d6 9. Rb1 a5 10. Bd2 Rb8 11. Qa4 Bg4 12. Nb5 Qd7 13. Rfe1 b6 14. b4 axb4 15. axb4 Rfd8 16. bxc5 bxc5 17. Qa3 h6 18. Bc3 Be6 19. Nd2 f5 20. e3 g5 21. Ra1 g4 22. Qa6 h5 23. Nb3 e4 24. Bxg7 Kxg7 25. Qa3 exd3 26. Nd2 Ne5 27. Qc3 N7c6 28. e4 Rf8 29. exf5 Rxf5 30. Ne4 Rxb5 31. cxb5 Nd4 32. b6 Kg6 33. Kh1 Bd5 34. Rab1 Qb7 35. Re3 Rxf2 36. Nxf2 Bxg2+ 37. Kg1 Nef3+ 38. Kxg2 Nh4+ 39. Kf1 Qg2+ 40. Ke1 Qg1+ 41. Kd2 Qxf2+ 42. Kxd3 Qf5+ 43. Kd2 Qxb1 44. Qd3+ Qxd3+ 45. Kxd3 Nhf5 46. b7 Nc6 47. Re8 1/2-1/2

[Event "3rd BSSZ-Aranytiz GM 2019"]
[Site "Budapest"]
[Date "2019.08.19"]
[Round "4.1"]
[White "Martinovici, Ilie"]
[Black "Secheres, Adrian-Simion"]
[Result "1/2-1/2"]
[ECO "D70"]
[WhiteElo "2405"]
[BlackElo "2394"]
[Annotator "NA"]
[PlyCount "114"]
[EventDate "2019.08.16"]
[EventType "tourn"]
[EventCountry "HUN"]
[SourceTitle "playchess.com"]
[Source "ChessBase"]
[SourceQuality "1"]
[TimeControl "40/5400+30:1800+30"]

1. d4 Nf6 {[%emt 0:01:25]} 2. c4 {[%emt 0:00:08]} g6 3. Nf3 {[%emt 0:00:23]} Bg7 {[%emt 0:00:35]} 4. g3 {[%emt 0:00:02]} O-O {[%emt 0:00:09]} 5. Bg2 {[%emt 0:00:02]} c5 {[%emt 0:00:24]} 6. O-O {[%emt 0:00:36]} cxd4 {[%emt 0:01:00]} 7. Nxd4 {[%emt 0:00:05]} d5 8. cxd5 {[%emt 0:05:18]} Nxd5 {[%emt 0:00:37]} 9. Nb5 {[%emt 0:06:04]} a6 {[%emt 0:00:06]} 10. N5c3 {[%emt 0:02:07]} Nb6 {[%emt 0:04:42]} 11. Bg5 {[%emt 0:05:09]} Nc6 {[%emt 0:04:32]} 12. Qxd8 {[%emt 0:00:18]} Rxd8 13. Bxc6 bxc6 {[%emt 0:00:44]} 14. Bxe7 {[%emt 0:00:35]} Re8 {[%emt 0:04:42]} 15. Bg5 {[%emt 0:18:20]} Nc4 {[%emt 0:05:22]} 16. b3 {[%emt 0:04:29]} Nd6 17. f3 Bh3 {[%emt 0:09:23]} 18. Rc1 {[%emt 0:01:45]} Nb5 {[%emt 0:04:23]} 19. Kf2 {[%emt 0:13:24]} h6 {[%emt 0:08:39]} 20. Be3 {[%emt 0:08:21]} Bf5 21. g4 {[%emt 0:00:07]} Bxb1 {[%emt 0:11:43]} 22. Nxb5 {[%emt 0:01:21]} Bxa1 {[%emt 0:05:04]} 23. Nd6 {[%emt 0:00:06]} Re6 {[%emt 0:08:17]} 24. Rxb1 {[%emt 0:07:05]} Bf6 {[%emt 0:00:30]} 25. Bf4 {[%emt 0:00:02]} Bh4+ {[%emt 0:05:50]} 26. Kf1 {[%emt 0:01:42]} Rd8 {[%emt 0:03:30]} 27. Ne4 {[%emt 0:03:17]} Rd5 {[%emt 0:04:39]} 28. Rc1 {[%emt 0:01:51]} f5 {[%emt 0:00:57]} 29. Nc5 {[%emt 0:00:08]} Rf6 {[%emt 0:06:03]} 30. gxf5 Rfxf5 31. e4 {[%emt 0:03:48]} Rxc5 {[%emt 0:00:40]} 32. exf5 {[%emt 0:00:04]} Rxf5 {[%emt 0:02:01]} 33. Rc4 {[%emt 0:02:26]} g5 {[%emt 0:00:55]} 34. Be3 {[%emt 0:00:52]} Rxf3+ 35. Ke2 {[%emt 0:00:11]} Rf6 {[%emt 0:02:47]} 36. Ra4 {[%emt 0:00:31]} Re6 37. Rxa6 {[%emt 0:01:12]} g4 {[%emt 0:01:50]} 38. Kd3 {[%emt 0:05:12]} g3 {[%emt 0:01:48]} 39. hxg3 {[%emt 0:00:00]} Bxg3 {[%emt 0:03:53]} 40. Ra5 {[%emt 0:00:00]} Bd6 {[%emt 0:00:00]} 41. a4 Kf7 {[%emt 0:02:28]} 42. Rh5 {[%emt 0:03:17]} Ke8 43. Bxh6 {[%emt 0:00:57]} Kd7 {[%emt 0:00:57]} 44. Be3 {[%emt 0:00:09]} Kc7 {[%emt 0:00:25]} 45. Bd4 {[%emt 0:01:09]} Kb7 {[%emt 0:01:06]} 46. Rh7+ {[%emt 0:00:35]} Re7 {[%emt 0:00:30]} 47. Rh6 {[%emt 0:00:05]} Bc7 {[%emt 0:03:32]} 48. Kc4 {[%emt 0:02:33]} Rd7 {[%emt 0:00:19]} 49. b4 {[%emt 0:03:05]} Rf7 {[%emt 0:01:46]} 50. Bc5 {[%emt 0:00:09]} Rf4+ 51. Kd3 {[%emt 0:00:20]} Rf3+ {[%emt 0:01:33]} 52. Ke2 {[%emt 0:00:30]} Rf7 {[%emt 0:01:17]} 53. a5 {[%emt 0:01:37]} Ka6 54. Rh5 {[%emt 0:00:30]} Rd7 {[%emt 0:05:43]} 55. Ke3 Bxa5 {[%emt 0:02:00]} 56. bxa5 {[%emt 0:01:50]} Rd5 {[%emt 0:00:06]} 57. Rxd5 {[%emt 0:00:09]} cxd5 {[%emt 0:00:04]} 1/2-1/2

[Event "3rd BSSZ-Aranytiz GM 2019"]
[Site "Budapest"]
[Date "2019.08.19"]
[Round "4.2"]
[White "Polyik, Peter"]
[Black "Kozak, Adam"]
[Result "0-1"]
[ECO "A62"]
[WhiteElo "2328"]
[BlackElo "2495"]
[Annotator "ChessBase"]
[PlyCount "144"]
[EventDate "2019.08.16"]
[EventType "tourn"]
[EventCountry "HUN"]
[SourceTitle "playchess.com"]
[Source "ChessBase"]
[SourceQuality "1"]
[TimeControl "40/5400+30:1800+30"]

1. d4 {[%emt 0:00:44]} Nf6 {[%emt 0:00:10]} 2. c4 {[%emt 0:00:07]} e6 {[%emt 0:00:06]} 3. g3 {[%emt 0:00:05]} c5 {[%emt 0:00:05]} 4. d5 {[%emt 0:00:05]} exd5 {[%emt 0:00:05]} 5. cxd5 {[%emt 0:00:05]} d6 {[%emt 0:00:16]} 6. Nc3 {[%emt 0:00:13]} g6 {[%emt 0:00:07]} 7. Bg2 {[%emt 0:00:08]} Bg7 {[%emt 0:00:07]} 8. Nf3 {[%emt 0:00:09]} O-O {[%emt 0:00:04]} 9. O-O {[%emt 0:00:07]} Re8 {[%emt 0:00:08]} 10. Bf4 {[%emt 0:00:18]} Ne4 {[%emt 0:00:20]} 11. Nxe4 {[%emt 0:02:15]} Rxe4 {[%emt 0:00:09]} 12. Nd2 {[%emt 0:00:38]} Rxf4 {[%emt 0:00:05]} 13. gxf4 {[%emt 0:00:05]} Bxb2 {[%emt 0:00:05]} 14. Rb1 {[%emt 0:06:02]} Bg7 {[%emt 0:00:08]} 15. e4 {[%emt 0:18:53]} Qh4 {[%emt 0:05:20]} 16. Qb3 {[%emt 0:35:40]} Qxf4 {[%emt 0:01:49]} 17. Nc4 {[%emt 0:01:26]} b6 {[%emt 0:11:04]} 18. Qg3 {[%emt 0:04:49]} Qxg3 {[%emt 0:00:08]} 19. hxg3 {[%emt 0:00:18]} Ba6 20. Rfc1 {[%emt 0:00:08]} Bxc4 {[%emt 0:01:47]} 21. Rxc4 {[%emt 0:00:04]} Na6 {[%emt 0:00:16]} 22. f4 {[%emt 0:11:12]} Bd4+ {[%emt 0:18:16]} 23. Kh2 {[%emt 0:08:25]} Nc7 {[%emt 0:00:51]} 24. Rbc1 {[%emt 0:03:45]} Bg7 {[%emt 0:01:43]} 25. e5 {[%emt 0:02:40]} Rd8 {[%emt 0:00:11]} 26. Ra4 {[%emt 0:00:16]} a6 {[%emt 0:03:10]} 27. Re1 {[%emt 0:01:03]} b5 {[%emt 0:01:10]} 28. Ra5 {[%emt 0:00:41]} Bf8 {[%emt 0:04:04]} 29. Rc1 {[%emt 0:03:11]} Re8 {[%emt 0:04:55]} 30. a4 {[%emt 0:00:48]} dxe5 {[%emt 0:00:29]} 31. axb5 {[%emt 0:00:06]} axb5 {[%emt 0:00:02]} 32. Ra7 {[%emt 0:00:41]} Bd6 {[%emt 0:00:26]} 33. fxe5 {[%emt 0:00:47]} Rxe5 {[%emt 0:00:06]} 34. Rxc7 {[%emt 0:00:11]} Bxc7 {[%emt 0:01:28]} 35. Rxc5 {[%emt 0:00:03]} Rh5+ {[%emt 0:00:02]} 36. Bh3 {[%emt 0:01:13]} Bd6 {[%emt 0:00:02]} 37. Rxb5 {[%emt 0:00:09]} Rg5 {[%emt 0:00:03]} 38. Rb3 {[%emt 0:00:06]} Rxd5 {[%emt 0:00:07]} 39. Kg2 {[%emt 0:01:18]} h5 {[%emt 0:01:37]} 40. Kf3 {[%emt 0:00:00]} Kg7 {[%emt 0:00:00]} 41. Bf1 {[%emt 0:09:41]} Rg5 {[%emt 0:03:35]} 42. Kf2 {[%emt 0:00:06]} Bc5+ {[%emt 0:00:03]} 43. Kg2 {[%emt 0:01:05]} Rf5 {[%emt 0:00:09]} 44. Rf3 {[%emt 0:00:11]} Re5 {[%emt 0:00:06]} 45. Bc4 {[%emt 0:03:51]} f5 {[%emt 0:00:17]} 46. Rb3 {[%emt 0:00:11]} Re4 {[%emt 0:00:37]} 47. Bd3 {[%emt 0:00:31]} Ra4 {[%emt 0:03:48]} 48. Rc3 {[%emt 0:01:23]} Bd6 {[%emt 0:00:52]} 49. Bb5 {[%emt 0:05:28]} Rb4 {[%emt 0:00:47]} 50. Be8 {[%emt 0:01:01]} Rb8 {[%emt 0:09:05]} 51. Re3 {[%emt 0:02:07]} Rb2+ {[%emt 0:06:45]} 52. Kf1 {[%emt 0:03:08]} Rb1+ {[%emt 0:02:12]} 53. Kg2 {[%emt 0:02:24]} Rb2+ {[%emt 0:07:25]} 54. Kf1 {[%emt 0:00:06]} Bxg3 {[%emt 0:12:12]} 55. Rxg3 {[%emt 0:00:24]} Rb6 {[%emt 0:00:03]} 56. Rc3 {[%emt 0:04:55]} Re6 {[%emt 0:00:51]} 57. Rc7+ {[%emt 0:02:07]} Kh6 {[%emt 0:01:20]} 58. Bf7 {[%emt 0:00:42]} Rf6 {[%emt 0:01:43]} 59. Be8 {[%emt 0:00:32]} Rf8 {[%emt 0:00:01]} 60. Bf7 {[%emt 0:00:38]} Kg5 {[%emt 0:01:40]} 61. Bc4 {[%emt 0:00:30]} Kf4 {[%emt 0:01:39]} 62. Bf7 {[%emt 0:00:19]} Kg5 {[%emt 0:00:00]} 63. Bc4 {[%emt 0:00:10]} h4 {[%emt 0:00:00]} 64. Kg2 {[%emt 0:00:18]} Kf4 {[%emt 0:01:09]} 65. Bf7 {[%emt 0:01:16]} g5 {[%emt 0:00:30]} 66. Bg6 {[%emt 0:00:20]} g4 {[%emt 0:00:26]} 67. Rf7 {[%emt 0:00:39]} h3+ {[%emt 0:02:14]} 68. Kh2 {[%emt 0:00:15]} Rxf7 {[%emt 0:04:04]} 69. Bxf7 {[%emt 0:00:01]} Kf3 {[%emt 0:00:01]} 70. Be6 {[%emt 0:00:43]} Kf2 {[%emt 0:00:40]} 71. Bd5 {[%emt 0:00:54]} f4 {[%emt 0:00:21]} 72. Bg2 {[%emt 0:00:09]} g3+ {[%emt 0:00:09]} 0-1

[Event "3rd BSSZ-Aranytiz GM 2019"]
[Site "Budapest"]
[Date "2019.08.19"]
[Round "4.3"]
[White "Farago, Ivan"]
[Black "Aczel, Gergely"]
[Result "0-1"]
[ECO "A90"]
[WhiteElo "2350"]
[BlackElo "2538"]
[Annotator "ChessBase"]
[PlyCount "86"]
[EventDate "2019.08.16"]
[EventType "tourn"]
[EventCountry "HUN"]
[SourceTitle "playchess.com"]
[Source "ChessBase"]
[SourceQuality "1"]
[TimeControl "40/5400+30:1800+30"]

1. d4 f5 {[%emt 0:03:00]} 2. c4 {[%emt 0:00:22]} Nf6 {[%emt 0:00:11]} 3. g3 {[%emt 0:00:17]} e6 {[%emt 0:00:10]} 4. Bg2 {[%emt 0:00:34]} c6 {[%emt 0:00:08]} 5. Nf3 {[%emt 0:00:44]} d5 {[%emt 0:00:02]} 6. O-O {[%emt 0:00:38]} Bd6 {[%emt 0:00:02]} 7. b3 {[%emt 0:00:27]} Qe7 {[%emt 0:00:00]} 8. Ne5 {[%emt 0:03:28]} O-O {[%emt 0:00:00]} 9. Bb2 b6 {[%emt 0:00:00]} 10. cxd5 {[%emt 0:04:18]} exd5 {[%emt 0:00:00]} 11. Qc2 Qe8 {[%emt 0:00:04]} 12. Nd2 {[%emt 0:03:17]} g6 {[%emt 0:00:17]} 13. Ndf3 {[%emt 0:07:32]} Bb7 {[%emt 0:02:50]} 14. Ne1 {[%emt 0:01:56]} a5 {[%emt 0:00:28]} 15. N1d3 {[%emt 0:08:24]} Na6 {[%emt 0:02:55]} 16. a3 {[%emt 0:00:30]} Rc8 {[%emt 0:46:57]} 17. b4 {[%emt 0:07:01]} axb4 {[%emt 0:07:34]} 18. axb4 {[%emt 0:10:40]} Nc7 19. Rfc1 {[%emt 0:00:30]} Nb5 {[%emt 0:13:57]} 20. Qb3 {[%emt 0:01:27]} Kh8 {[%emt 0:10:09]} 21. Rc2 Ng8 {[%emt 0:00:02]} 22. Rac1 {[%emt 0:02:36]} Ne7 {[%emt 0:01:01]} 23. h4 {[%emt 0:09:05]} h6 {[%emt 0:00:03]} 24. Nf4 {[%emt 0:01:54]} Kh7 {[%emt 0:00:16]} 25. e3 {[%emt 0:08:28]} Rf6 {[%emt 0:01:06]} 26. Nf3 {[%emt 0:00:30]} Bb8 27. Nd3 {[%emt 0:06:25]} Nd6 {[%emt 0:02:04]} 28. Ra1 {[%emt 0:04:57]} Rf8 {[%emt 0:02:41]} 29. Nde5 {[%emt 0:01:29]} Bc7 {[%emt 0:02:38]} 30. Bf1 {[%emt 0:05:09]} Bb8 {[%emt 0:01:46]} 31. Be2 {[%emt 0:00:36]} b5 {[%emt 0:01:26]} 32. Nd3 {[%emt 0:00:42]} Ng8 {[%emt 0:00:01]} 33. Nc5 {[%emt 0:00:30]} Qe7 {[%emt 0:00:26]} 34. Ne5 {[%emt 0:01:24]} Nf6 {[%emt 0:01:01]} 35. Na6 {[%emt 0:01:34]} Ba7 {[%emt 0:00:11]} 36. Nc5 {[%emt 0:01:09]} Bb6 {[%emt 0:00:28]} 37. Bc1 {[%emt 0:01:00]} Nc4 {[%emt 0:00:02]} 38. Nxb7 {[%emt 0:00:36]} Qxb7 {[%emt 0:01:49]} 39. Rca2 {[%emt 0:00:00]} Ra8 {[%emt 0:00:00]} 40. Nd3 {[%emt 0:00:00]} Ne4 {[%emt 0:00:00]} 41. Nc5 {[%emt 0:04:01]} Rxa2 {[%emt 0:11:35]} 42. Qxa2 {[%emt 0:00:29]} Bxc5 {[%emt 0:00:30]} 43. dxc5 Nc3 0-1

[Event "3rd BSSZ-Aranytiz GM 2019"]
[Site "Budapest"]
[Date "2019.08.19"]
[Round "4.4"]
[White "Akshat, Khamparia"]
[Black "Horvath, Dominik"]
[Result "1-0"]
[ECO "D30"]
[WhiteElo "2393"]
[BlackElo "2425"]
[Annotator "NA"]
[PlyCount "133"]
[EventDate "2019.08.16"]
[EventType "tourn"]
[EventCountry "HUN"]
[SourceTitle "playchess.com"]
[Source "ChessBase"]
[SourceQuality "1"]
[TimeControl "40/5400+30:1800+30"]

1. d4 {[%emt 0:00:02]} d5 {[%emt 0:00:11]} 2. c4 {[%emt 0:00:12]} e6 {[%emt 0:00:06]} 3. Nf3 {[%emt 0:00:13]} Nf6 {[%emt 0:00:10]} 4. e3 {[%emt 0:00:07]} a6 {[%emt 0:00:24]} 5. b3 {[%emt 0:01:05]} b6 {[%emt 0:02:04]} 6. Bd3 {[%emt 0:01:16]} Bb7 {[%emt 0:00:06]} 7. O-O {[%emt 0:00:37]} Nbd7 {[%emt 0:00:10]} 8. Bb2 {[%emt 0:00:34]} Ne4 {[%emt 0:02:56]} 9. Nc3 {[%emt 0:00:58]} Bd6 {[%emt 0:00:20]} 10. Ne2 {[%emt 0:00:19]} O-O {[%emt 0:03:14]} 11. Rc1 {[%emt 0:00:17]} Qe7 {[%emt 0:07:37]} 12. Ne5 {[%emt 0:02:21]} Rfd8 {[%emt 0:11:23]} 13. cxd5 {[%emt 0:03:13]} exd5 {[%emt 0:00:32]} 14. Nc6 {[%emt 0:01:18]} Bxc6 {[%emt 0:09:12]} 15. Rxc6 {[%emt 0:00:06]} Qh4 {[%emt 0:04:21]} 16. g3 {[%emt 0:09:22]} Qh3 {[%emt 0:00:24]} 17. Rc2 {[%emt 0:00:57]} c5 {[%emt 0:08:31]} 18. Nf4 {[%emt 0:11:18]} Bxf4 {[%emt 0:00:34]} 19. exf4 {[%emt 0:00:30]} Re8 {[%emt 0:09:20]} 20. Re1 {[%emt 0:08:45]} Re6 {[%emt 0:02:05]} 21. f3 {[%emt 0:06:20]} Nd6 {[%emt 0:00:39]} 22. Bf1 {[%emt 0:02:21]} Qf5 {[%emt 0:01:10]} 23. Rce2 {[%emt 0:04:16]} Rae8 {[%emt 0:09:55]} 24. Rxe6 {[%emt 0:01:55]} Rxe6 {[%emt 0:00:21]} 25. dxc5 {[%emt 0:05:17]} bxc5 {[%emt 0:01:12]} 26. Rxe6 {[%emt 0:11:27]} Qxe6 {[%emt 0:00:04]} 27. Qe2 {[%emt 0:00:22]} Qxe2 {[%emt 0:04:57]} 28. Bxe2 {[%emt 0:00:05]} Nb5 {[%emt 0:03:01]} 29. a4 {[%emt 0:05:15]} Nc7 {[%emt 0:00:05]} 30. Bc3 {[%emt 0:03:05]} Nf6 {[%emt 0:05:41]} 31. Ba5 {[%emt 0:01:44]} Ne6 {[%emt 0:00:49]} 32. Bxa6 {[%emt 0:06:29]} Nd4 {[%emt 0:00:06]} 33. Bb7 {[%emt 0:00:31]} Nxb3 {[%emt 0:01:55]} 34. Bd8 {[%emt 0:00:23]} c4 {[%emt 0:01:34]} 35. Bxf6 {[%emt 0:01:28]} gxf6 {[%emt 0:01:09]} 36. Bxd5 {[%emt 0:00:07]} Nc5 {[%emt 0:00:22]} 37. Bxc4 {[%emt 0:01:11]} Nxa4 {[%emt 0:00:07]} 38. Kf2 {[%emt 0:00:46]} Nb6 {[%emt 0:00:34]} 39. Bd3 {[%emt 0:02:35]} h6 {[%emt 0:00:22]} 40. Ke3 {[%emt 0:00:00]} Kf8 {[%emt 0:00:00]} 41. Kd4 {[%emt 0:01:06]} Ke7 {[%emt 0:01:08]} 42. h4 {[%emt 0:03:58]} Nc8 {[%emt 0:03:42]} 43. Kd5 {[%emt 0:02:30]} Nd6 {[%emt 0:00:12]} 44. g4 {[%emt 0:01:01]} Ne8 {[%emt 0:00:22]} 45. Kc6 {[%emt 0:02:45]} Nd6 {[%emt 0:00:47]} 46. h5 {[%emt 0:02:18]} Ne8 {[%emt 0:05:22]} 47. Bb1 {[%emt 0:12:42]} Nd6 {[%emt 0:01:02]} 48. g5 {[%emt 0:03:17]} fxg5 {[%emt 0:00:05]} 49. fxg5 {[%emt 0:00:04]} hxg5 {[%emt 0:00:05]} 50. h6 {[%emt 0:00:10]} f6 {[%emt 0:00:24]} 51. h7 {[%emt 0:04:42]} Nf7 {[%emt 0:00:03]} 52. Kd5 {[%emt 0:00:05]} Kf8 {[%emt 0:00:09]} 53. Bg6 {[%emt 0:01:55]} Nh8 {[%emt 0:00:05]} 54. Bh5 {[%emt 0:00:22]} f5 {[%emt 0:04:26]} 55. Ke6 {[%emt 0:00:26]} g4 {[%emt 0:00:02]} 56. fxg4 {[%emt 0:00:11]} fxg4 {[%emt 0:00:04]} 57. Kf6 {[%emt 0:00:14]} g3 {[%emt 0:00:02]} 58. Bf3 Nf7 {[%emt 0:00:03]} 59. Bg2 {[%emt 0:01:07]} Nh8 {[%emt 0:04:04]} 60. Bd5 {[%emt 0:00:13]} g2 {[%emt 0:00:01]} 61. Bxg2 {[%emt 0:00:09]} Nf7 {[%emt 0:00:03]} 62. Bd5 {[%emt 0:00:37]} Nh8 {[%emt 0:00:07]} 63. Be4 {[%emt 0:04:45]} Nf7 {[%emt 0:00:06]} 64. Bg6 {[%emt 0:00:13]} Nh8 {[%emt 0:00:05]} 65. Bh5 {[%emt 0:00:14]} Nf7 {[%emt 0:00:03]} 66. Kg6 {[%emt 0:00:29]} Nh8+ {[%emt 0:00:42]} 67. Kh6 {[%emt 0:00:05]} 1-0

[Event "3rd BSSZ-Aranytiz GM 2019"]
[Site "Budapest"]
[Date "2019.08.21"]
[Round "5.1"]
[White "Horvath, Adam"]
[Black "Martinovici, Ilie"]
[Result "1-0"]
[ECO "C06"]
[WhiteElo "2517"]
[BlackElo "2405"]
[Annotator "ChessBase"]
[PlyCount "109"]
[EventDate "2019.08.16"]
[EventType "tourn"]
[EventCountry "HUN"]
[SourceTitle "playchess.com"]
[Source "ChessBase"]
[SourceQuality "1"]
[TimeControl "40/5400+30:1800+30"]

1. e4 {[%emt 0:00:22]} e6 {[%emt 0:02:41]} 2. d4 {[%emt 0:00:06]} d5 {[%emt 0:00:02]} 3. Nd2 {[%emt 0:00:09]} Nf6 {[%emt 0:00:05]} 4. e5 {[%emt 0:00:09]} Nfd7 {[%emt 0:00:03]} 5. Bd3 {[%emt 0:00:12]} c5 {[%emt 0:00:07]} 6. c3 {[%emt 0:00:05]} Nc6 {[%emt 0:00:02]} 7. Ne2 {[%emt 0:00:07]} cxd4 {[%emt 0:00:05]} 8. cxd4 f6 {[%emt 0:00:04]} 9. exf6 {[%emt 0:00:16]} Nxf6 {[%emt 0:00:05]} 10. Nf3 {[%emt 0:00:14]} Bd6 {[%emt 0:00:03]} 11. O-O {[%emt 0:00:19]} Qc7 {[%emt 0:00:03]} 12. h3 {[%emt 0:00:25]} O-O {[%emt 0:00:07]} 13. Be3 {[%emt 0:00:02]} Bd7 {[%emt 0:00:55]} 14. Re1 {[%emt 0:09:15]} a6 {[%emt 0:04:30]} 15. Rc1 {[%emt 0:01:17]} Rac8 {[%emt 0:09:31]} 16. Nc3 {[%emt 0:08:20]} Qb8 {[%emt 0:00:30]} 17. Bb1 {[%emt 0:13:47]} Ne7 {[%emt 0:08:02]} 18. Ne5 {[%emt 0:10:34]} Be8 {[%emt 0:00:35]} 19. Bg5 b5 {[%emt 0:22:16]} 20. Ng4 {[%emt 0:30:50]} Bd7 21. Nxf6+ {[%emt 0:12:35]} gxf6 {[%emt 0:00:38]} 22. Bh6 {[%emt 0:00:27]} Rf7 {[%emt 0:00:08]} 23. Qg4+ {[%emt 0:00:14]} Kh8 {[%emt 0:00:24]} 24. Qh5 {[%emt 0:00:05]} Kg8 {[%emt 0:00:54]} 25. Ne2 {[%emt 0:00:12]} Rxc1 {[%emt 0:01:57]} 26. Rxc1 {[%emt 0:01:18]} f5 {[%emt 0:01:16]} 27. Qg5+ {[%emt 0:04:01]} Ng6 {[%emt 0:05:34]} 28. Qd2 {[%emt 0:00:54]} Qb6 {[%emt 0:05:07]} 29. Nf4 {[%emt 0:04:58]} Be7 {[%emt 0:00:05]} 30. Nxg6 {[%emt 0:00:30]} hxg6 {[%emt 0:00:30]} 31. Bf4 {[%emt 0:00:00]} Bf6 {[%emt 0:00:39]} 32. Be5 {[%emt 0:00:12]} Bxe5 {[%emt 0:00:12]} 33. dxe5 {[%emt 0:01:38]} Kg7 {[%emt 0:04:33]} 34. b4 {[%emt 0:00:19]} Qd8 {[%emt 0:00:47]} 35. Qd4 Be8 36. Rc3 {[%emt 0:02:30]} Qb8 {[%emt 0:05:15]} 37. f4 {[%emt 0:01:24]} Rc7 {[%emt 0:00:41]} 38. Bd3 {[%emt 0:00:29]} Rxc3 {[%emt 0:02:39]} 39. Qxc3 {[%emt 0:00:04]} Qb6+ {[%emt 0:00:05]} 40. Qc5 {[%emt 0:00:00]} Qxc5+ {[%emt 0:00:00]} 41. bxc5 {[%emt 0:00:42]} Kf7 {[%emt 0:01:07]} 42. Kf2 {[%emt 0:00:04]} d4 {[%emt 0:01:14]} 43. g4 {[%emt 0:12:02]} a5 {[%emt 0:04:33]} 44. Ke2 {[%emt 0:05:09]} Bc6 {[%emt 0:01:29]} 45. g5 {[%emt 0:00:59]} b4 {[%emt 0:08:00]} 46. Bc4 {[%emt 0:01:42]} a4 {[%emt 0:01:56]} 47. Kd3 {[%emt 0:01:36]} Bd5 {[%emt 0:13:17]} 48. Kxd4 {[%emt 0:02:01]} a3 {[%emt 0:00:02]} 49. h4 {[%emt 0:06:10]} b3 {[%emt 0:00:05]} 50. Bxb3 {[%emt 0:00:09]} Bxb3 {[%emt 0:00:07]} 51. c6 {[%emt 0:00:07]} Bd5 {[%emt 0:05:50]} 52. Kc5 {[%emt 0:02:24]} Ke7 {[%emt 0:00:06]} 53. Kb6 {[%emt 0:02:14]} Bf3 {[%emt 0:00:43]} 54. c7 {[%emt 0:00:17]} Kd7 {[%emt 0:00:04]} 55. h5 {[%emt 0:00:04]} 1-0